bitfinex-derivatives/quotes_BNBF0:USTF0_20250630
["timestamp","ask_amount","ask_price","bid_price","bid_amount"]
[1751274920886,1.331313,654.07,653.58,2.164]
[1751274921090,1.331313,654.06,653.58,2.164]
[1751274921291,1.331313,654.05,653.58,2.164]
[1751274921491,1.331313,654.04,653.58,2.164]
[1751274921689,1.331313,654.03,653.58,2.164]
[1751274921887,1.331313,654.02,653.58,2.164]
[1751274922086,1.331313,654.01,653.58,2.164]
[1751274922288,1.331313,654.0,653.58,2.164]
[1751274922487,1.331313,653.99,653.58,2.164]
[1751274922691,1.331313,653.98,653.58,2.164]
[1751274922989,0.26617206,654.19,653.58,2.164]
[1751274922990,1.331313,653.97,653.58,2.164]
[1751274923190,1.331313,653.96,653.58,2.164]
[1751274923393,1.331313,653.95,653.58,2.164]
[1751274923590,1.331313,653.94,653.58,2.164]
[1751274923791,1.331313,653.93,653.58,2.164]
[1751274923990,1.331313,653.92,653.58,2.164]
[1751274924190,1.331313,653.91,653.58,2.164]
[1751274924393,1.331313,653.9,653.58,2.164]
[1751274924693,1.331313,653.89,653.58,2.164]
[1751274924889,0.26617206,654.19,653.58,2.164]
[1751274924890,1.331313,653.88,653.58,2.164]
[1751274925093,1.331313,653.87,653.58,2.164]
[1751274925291,1.331313,653.86,653.58,2.164]
[1751274925595,1.331313,653.85,653.58,2.164]
[1751274925892,1.331313,653.84,653.59,2.1]
[1751274926095,1.331313,653.83,653.59,2.1]
[1751274926294,1.331313,653.82,653.59,2.1]
[1751274926491,1.331313,653.81,653.59,2.1]
[1751274926791,1.331313,653.8,653.59,2.1]
[1751274926991,1.331313,653.79,653.59,2.1]
[1751274927196,1.331313,653.78,653.59,2.1]
[1751274927396,1.331313,653.77,653.59,2.1]
[1751274927594,1.5288625,654.12,653.59,2.1]
[1751274927794,1.3313126,654.11,653.59,2.1]
[1751274927995,1.3313126,654.1,653.59,2.1]
[1751274928292,1.3313126,654.09,653.59,2.1]
[1751274928490,1.3313126,654.08,653.59,2.1]
[1751274928692,1.3313126,654.07,653.59,2.1]
[1751274928892,1.3313126,654.06,653.59,2.1]
[1751274929090,1.3313126,654.05,653.59,2.1]
[1751274929299,1.3313126,654.04,653.59,2.1]
[1751274929599,1.3313126,654.03,653.59,2.1]
[1751274929800,1.3313126,654.02,653.59,2.1]
[1751274930101,1.3313126,654.01,653.59,2.1]
[1751274930400,1.3313126,654.0,653.59,2.1]
[1751274930595,1.3313126,653.99,653.59,2.1]
[1751274930895,1.3313126,653.98,653.59,2.1]
[1751274931196,1.3313126,653.97,653.59,2.1]
[1751274931400,1.3313126,653.96,653.59,2.1]
[1751274931598,1.3313126,653.95,653.59,2.1]
[1751274931797,1.3313126,653.94,653.59,2.1]
[1751274932001,1.3313126,653.93,653.59,2.1]
[1751274932201,1.3313126,653.92,653.6,1.463]
[1751274932401,1.3313126,653.91,653.6,1.463]
[1751274932700,1.3313126,653.9,653.6,1.463]
[1751274932900,1.3313126,653.89,653.6,1.463]
[1751274933098,1.3313126,653.88,653.6,1.463]
[1751274933301,1.3313126,653.87,653.6,1.463]
[1751274933498,1.3313126,653.86,653.6,1.463]
[1751274933698,1.3313126,653.85,653.6,1.463]
[1751274933899,1.3313126,653.84,653.6,1.463]
[1751274934103,1.3313126,653.83,653.6,1.463]
[1751274934301,1.3313126,653.82,653.6,1.463]
[1751274934503,1.3313126,653.81,653.6,1.463]
[1751274934804,1.3313126,653.8,653.6,1.463]
[1751274935003,1.3313126,653.79,653.6,1.463]
[1751274935200,1.3313126,653.78,653.6,1.463]
[1751274935403,1.3313126,653.77,653.6,1.463]
[1751274935703,1.3313126,653.76,653.6,1.463]
[1751274935900,1.5288625,654.17,653.6,1.463]
[1751274936201,2.8601637,654.16,653.6,1.463]
[1751274936404,1.3313012,654.15,653.6,1.463]
[1751274936703,1.3313012,654.14,653.6,1.463]
[1751274936904,1.3313012,654.13,653.6,1.463]
[1751274937101,1.3313012,654.12,653.6,1.463]
[1751274937400,1.3313012,654.11,653.6,1.463]
[1751274937602,1.3313012,654.1,653.6,1.463]
[1751274937903,1.3313012,654.09,653.6,1.463]
[1751274938097,1.3313012,654.08,653.6,1.463]
[1751274938303,1.3313012,654.07,653.6,1.463]
[1751274938499,1.3313012,654.06,653.6,1.463]
[1751274938703,1.3313012,654.05,653.6,1.463]
[1751274938906,1.3313012,654.04,653.6,1.463]
[1751274939204,1.3313012,654.03,653.6,1.463]
[1751274939402,1.3313012,654.02,653.6,1.463]
[1751274939602,1.3313012,654.01,653.6,1.463]
[1751274939807,1.3313012,654.0,653.6,1.463]
[1751274940108,1.3313012,653.99,653.6,1.463]
[1751274940401,1.3313012,653.98,653.6,1.463]
[1751274940605,1.3313012,653.97,653.6,1.463]
[1751274940801,1.3313012,653.96,653.6,1.463]
[1751274941007,1.3313012,653.95,653.6,1.463]
[1751274941207,1.3313012,653.94,653.6,1.463]
[1751274941408,1.3313012,653.93,653.6,1.463]
[1751274941604,1.3313012,653.92,653.6,1.463]
[1751274941804,1.3313012,653.91,653.6,1.463]
[1751274942004,1.3313012,653.9,653.6,1.463]
[1751274942204,1.3313012,653.89,653.6,1.463]
[1751274942404,1.5288625,654.16,653.6,1.463]
[1751274942603,2.8586764,654.15,653.6,1.463]
[1751274942806,1.3298139,654.14,653.6,1.463]
[1751274943004,1.3298139,654.13,653.6,1.463]
[1751274943208,1.3298139,654.12,653.6,1.463]
[1751274943507,1.3298139,654.11,653.6,1.463]
[1751274943701,1.3298139,654.1,653.6,1.463]
[1751274943903,1.3298139,654.09,653.6,1.463]
[1751274944105,1.3298139,654.08,653.6,1.463]
[1751274944307,0.26615373,654.32,653.6,1.463]
[1751274944308,1.3298139,654.07,653.61,1.519]
[1751274944504,1.3298139,654.06,653.61,1.519]
[1751274944706,1.3298139,654.05,653.61,1.519]
[1751274944908,1.3298139,654.04,653.61,1.519]
[1751274945204,1.3298139,654.03,653.61,1.519]
[1751274945505,1.3298139,654.02,653.61,1.519]
[1751274945709,1.3298139,654.01,653.61,1.519]
[1751274945910,1.3298139,654.0,653.61,1.519]
[1751274946106,1.3298139,653.99,653.61,1.519]
[1751274946311,1.3298139,653.98,653.61,1.519]
[1751274946506,1.3298139,653.97,653.61,1.519]
[1751274946809,1.3298139,653.96,653.61,1.519]
[1751274947009,1.3298139,653.95,653.62,1.472]
[1751274947213,1.3298139,653.94,653.62,2.931]
[1751274947406,0.26615373,654.32,653.62,2.931]
[1751274947407,1.3298139,653.93,653.62,2.931]
[1751274947710,1.3298139,653.92,653.62,2.931]
[1751274947909,1.3298139,653.91,653.62,2.931]
[1751274948106,1.3298139,653.9,653.62,2.931]
[1751274948305,1.3298139,653.89,653.62,2.931]
[1751274948507,1.3298139,653.88,653.62,2.931]
[1751274948709,1.5288625,654.1,653.62,2.931]
[1751274948710,1.3298139,653.87,653.62,2.931]
[1751274948910,1.3298139,653.86,653.62,2.931]
[1751274949113,1.3298139,653.85,653.62,2.931]
[1751274949308,1.3298139,653.84,653.62,2.931]
[1751274949512,1.3298139,653.83,653.62,2.931]
[1751274949712,1.5288625,654.08,653.62,2.931]
[1751274949912,1.3290354,654.07,653.62,2.931]
[1751274950207,1.3290354,654.06,653.62,2.931]
[1751274950409,1.3290354,654.05,653.62,2.931]
[1751274950612,1.3290354,654.04,653.62,2.931]
[1751274950812,1.3290354,654.03,653.62,2.931]
[1751274951008,1.3290354,654.02,653.62,2.931]
[1751274951314,1.3290354,654.01,653.62,2.931]
[1751274951514,1.3290354,654.0,653.62,2.931]
[1751274951809,1.3290354,653.99,653.62,2.931]
[1751274952014,1.3290354,653.98,653.62,2.931]
[1751274952314,1.3290354,653.97,653.62,2.931]
[1751274952608,1.3290354,653.96,653.62,2.931]
[1751274952812,1.3290354,653.95,653.62,2.931]
[1751274953014,1.3290354,653.94,653.62,2.931]
[1751274953514,1.3290354,653.93,653.62,2.931]
[1751274953711,1.3290354,653.92,653.62,2.931]
[1751274954015,1.3290354,653.91,653.62,2.931]
[1751274954214,1.3290354,653.9,653.62,2.931]
[1751274954411,1.3290354,653.89,653.62,2.931]
[1751274954612,1.3290354,653.88,653.62,2.931]
[1751274954810,1.3290354,653.87,653.62,2.931]
[1751274955009,1.3290354,653.86,653.62,2.931]
[1751274955310,1.5288625,654.13,653.62,2.931]
[1751274955513,1.3287838,654.12,653.62,2.931]
[1751274955713,1.3287838,654.11,653.62,2.931]
[1751274955912,1.3287838,654.1,653.62,2.931]
[1751274956114,1.3287838,654.09,653.62,2.931]
[1751274956315,1.3287838,654.08,653.62,2.931]
[1751274956615,1.3287838,654.07,653.62,2.931]
[1751274956815,1.3287838,654.06,653.62,2.931]
[1751274957117,1.3287838,654.05,653.63,1.542]
[1751274957416,1.3287838,654.04,653.63,1.542]
[1751274957712,1.3287838,654.03,653.63,1.542]
[1751274957915,1.3287838,654.02,653.63,1.542]
[1751274958215,1.3287838,654.01,653.63,1.542]
[1751274958414,1.3287838,654.0,653.63,1.542]
[1751274958619,1.3287838,653.99,653.63,1.542]
[1751274958818,1.3287838,653.98,653.63,1.542]
[1751274959016,1.3287838,653.97,653.63,1.542]
[1751274959216,1.3287838,653.96,653.63,1.542]
[1751274959420,1.3287838,653.95,653.63,1.542]
[1751274959621,1.5288625,654.14,653.63,1.542]
[1751274959622,1.3287838,653.94,653.63,1.542]
[1751274959820,1.3287838,653.93,653.63,1.542]
[1751274960017,1.3287838,653.92,653.63,1.542]
[1751274960316,1.5288625,654.14,653.63,1.542]
[1751274960317,1.3287838,653.91,653.63,1.542]
[1751274960618,1.3287838,653.9,653.63,1.542]
[1751274960821,1.3287838,653.89,653.63,1.542]
[1751274961020,1.3287838,653.88,653.63,1.542]
[1751274961221,1.3287838,653.87,653.63,1.542]
[1751274961420,1.3287838,653.86,653.63,1.542]
[1751274961621,1.5288625,654.14,653.63,1.542]
[1751274961922,1.3286487,654.13,653.63,1.542]
[1751274962222,1.3286487,654.12,653.63,1.542]
[1751274962516,1.3286487,654.11,653.63,1.542]
[1751274962721,1.3286487,654.1,653.63,1.542]
[1751274962922,1.3286487,654.09,653.63,1.542]
[1751274963123,1.3286487,654.08,653.63,1.542]
[1751274963320,1.3286487,654.07,653.63,1.542]
[1751274963524,1.3286487,654.06,653.63,1.542]
[1751274963719,1.3286487,654.05,653.63,1.542]
[1751274963923,1.3286487,654.04,653.63,1.542]
[1751274964124,1.3286487,654.03,653.63,1.542]
[1751274964425,1.3286487,654.02,653.63,1.542]
[1751274964619,1.3286487,654.01,653.63,1.542]
[1751274964923,1.3286487,654.0,653.63,1.542]
[1751274965121,1.3286487,653.99,653.63,1.542]
[1751274965318,1.3286487,653.98,653.63,1.542]
[1751274965517,1.5288625,654.14,653.63,1.542]
[1751274965518,1.3286487,653.97,653.63,1.542]
[1751274965722,1.3286487,653.96,653.64,1.858]
[1751274965922,1.3286487,653.95,653.64,1.858]
[1751274966220,1.3286487,653.94,653.64,1.858]
[1751274966419,1.3286487,653.93,653.64,1.858]
[1751274966720,1.3286487,653.92,653.64,1.858]
[1751274966923,1.3286487,653.91,653.64,1.858]
[1751274967220,1.3286487,653.9,653.64,1.858]
[1751274967421,1.3286487,653.89,653.64,1.858]
[1751274967719,1.3286487,653.88,653.64,1.858]
[1751274967920,1.3286487,653.87,653.64,1.858]
[1751274968119,1.5288625,654.16,653.64,1.858]
[1751274968324,1.3286,654.15,653.64,1.858]
[1751274968522,1.3286,654.14,653.64,1.858]
[1751274968720,1.3286,654.13,653.64,1.858]
[1751274968920,1.3286,654.12,653.64,1.858]
[1751274969121,1.3286,654.11,653.64,1.858]
[1751274969323,1.3286,654.1,653.64,1.858]
[1751274969523,1.3286,654.09,653.64,1.858]
[1751274969720,1.3286,654.08,653.64,1.858]
[1751274969924,1.3286,654.07,653.64,1.858]
[1751274970124,1.3286,654.06,653.64,1.858]
[1751274970323,1.3286,654.05,653.64,1.858]
[1751274970523,1.3286,654.04,653.64,1.858]
[1751274970719,1.3286,654.03,653.64,1.858]
[1751274970924,1.3286,654.02,653.64,1.858]
[1751274971222,1.3286,654.01,653.64,1.858]
[1751274971424,1.3286,654.0,653.64,1.858]
[1751274971623,1.3286,653.99,653.64,1.858]
[1751274971920,1.3286,653.98,653.64,1.858]
[1751274972124,1.3286,653.97,653.64,1.858]
[1751274972324,1.3286,653.96,653.64,1.858]
[1751274972524,1.5288625,654.31,653.64,1.858]
[1751274972525,1.3286,653.95,653.64,1.858]
[1751274972726,1.79501623,654.32,653.64,1.858]
[1751274972924,1.32848452,654.31,653.64,1.858]
[1751274973219,1.32848452,654.3,653.64,1.858]
[1751274973420,1.32848452,654.29,653.65,1.962]
[1751274973719,1.32848452,654.28,653.65,1.962]
[1751274973924,1.32848452,654.27,653.65,1.962]
[1751274974121,1.32848452,654.26,653.65,1.962]
[1751274974322,1.32848452,654.25,653.65,1.962]
[1751274974521,1.32848452,654.24,653.65,1.962]
[1751274974719,1.32848452,654.23,653.65,1.962]
[1751274974920,1.32848452,654.22,653.65,1.962]
[1751274975126,1.32848452,654.21,653.65,1.962]
[1751274975327,1.32848452,654.2,653.65,1.962]
[1751274975525,1.32848452,654.19,653.65,1.962]
[1751274975726,1.32848452,654.18,653.65,1.962]
[1751274975926,1.32848452,654.17,653.65,1.962]
[1751274976124,1.32848452,654.16,653.65,1.962]
[1751274976326,1.32848452,654.15,653.65,1.962]
[1751274976523,1.32848452,654.14,653.65,1.962]
[1751274976726,1.32848452,654.13,653.65,1.962]
[1751274977028,1.79501623,654.32,653.65,1.962]
[1751274977029,1.32848452,654.12,653.65,1.962]
[1751274977227,1.32848452,654.11,653.65,1.962]
[1751274977527,1.32848452,654.1,653.65,1.962]
[1751274977826,1.32848452,654.09,653.65,1.962]
[1751274978023,1.32848452,654.08,653.65,1.962]
[1751274978227,1.32848452,654.07,653.65,1.962]
[1751274978428,1.32848452,654.06,653.65,1.962]
[1751274978724,1.32848452,654.05,653.65,1.962]
[1751274978929,1.32848452,654.04,653.65,1.962]
[1751274979128,1.32848452,654.03,653.65,1.962]
[1751274979327,1.32848452,654.02,653.65,1.962]
[1751274979526,1.32848452,654.01,653.65,1.962]
[1751274979728,1.32848452,654.0,653.65,1.962]
[1751274979927,1.5288625,654.26,653.65,1.962]
[1751274979928,1.32848452,653.99,653.65,1.962]
[1751274980128,1.32848452,653.98,653.65,1.962]
[1751274980326,1.32848452,653.97,653.65,1.962]
[1751274980531,1.32848452,653.96,653.65,1.962]
[1751274980831,1.32848452,653.95,653.65,1.962]
[1751274981026,1.32848452,653.94,653.65,1.962]
[1751274981232,1.32848452,653.93,653.65,1.962]
[1751274981527,1.32848452,653.92,653.66,1.299]
[1751274981728,1.32848452,653.91,653.66,1.299]
[1751274982027,1.5288625,654.24,653.66,1.299]
[1751274982232,1.3285334,654.23,653.66,1.299]
[1751274982430,1.3285334,654.22,653.66,1.299]
[1751274982630,1.3285334,654.21,653.66,1.299]
[1751274982831,1.3285334,654.2,653.66,1.299]
[1751274983030,1.3285334,654.19,653.66,1.299]
[1751274983228,1.3285334,654.18,653.66,1.299]
[1751274983433,1.3285334,654.17,653.66,1.299]
[1751274983627,1.3285334,654.16,653.66,1.299]
[1751274983831,1.3285334,654.15,653.66,1.299]
[1751274984029,1.3285334,654.14,653.67,1.611]
[1751274984329,1.3285334,654.13,653.67,1.611]
[1751274984529,1.3285334,654.12,653.67,1.611]
[1751274984730,1.3285334,654.11,653.67,1.611]
[1751274984932,1.3285334,654.1,653.67,1.611]
[1751274985130,1.3285334,654.09,653.67,1.611]
[1751274985429,1.3285334,654.08,653.67,1.611]
[1751274985629,1.3285334,654.07,653.67,1.611]
[1751274985830,1.3285334,654.06,653.67,1.611]
[1751274986032,1.3285334,654.05,653.67,1.611]
[1751274986227,1.3285334,654.04,653.67,1.611]
[1751274986428,1.3285334,654.03,653.67,1.611]
[1751274986733,1.3285334,654.02,653.67,1.611]
[1751274986936,1.3285334,654.01,653.67,1.611]
[1751274987132,1.3285334,654.0,653.67,1.611]
[1751274987333,1.3285334,653.99,653.67,1.611]
[1751274987532,1.3285334,653.98,653.67,1.611]
[1751274987735,1.3285334,653.97,653.67,1.611]
[1751274988135,1.3285334,653.96,653.67,1.611]
[1751274988334,1.3285334,653.95,653.67,1.611]
[1751274988533,1.3285334,653.94,653.67,1.611]
[1751274988737,1.3285334,653.93,653.67,1.611]
[1751274988936,1.3285334,653.92,653.67,1.611]
[1751274989138,1.3285334,653.91,653.67,1.611]
[1751274989339,1.5288625,654.25,653.67,1.611]
[1751274989543,1.32892742,654.24,653.67,1.611]
[1751274989738,1.32892742,654.23,653.67,1.611]
[1751274989938,1.32892742,654.22,653.67,1.611]
[1751274990140,1.32892742,654.21,653.67,1.611]
[1751274990335,1.32892742,654.2,653.68,1.599]
[1751274990534,1.32892742,654.19,653.68,1.599]
[1751274990734,1.32892742,654.18,653.68,1.599]
[1751274991036,1.32892742,654.17,653.68,1.599]
[1751274991339,1.32892742,654.16,653.68,1.599]
[1751274991539,1.32892742,654.15,653.68,1.599]
[1751274991735,1.32892742,654.14,653.68,1.599]
[1751274991935,1.32892742,654.13,653.68,1.599]
[1751274992241,1.32892742,654.12,653.68,1.599]
[1751274992439,1.32892742,654.11,653.68,1.599]
[1751274992639,1.32892742,654.1,653.68,1.599]
[1751274992844,1.32892742,654.09,653.68,1.599]
[1751274993040,1.32892742,654.08,653.68,1.599]
[1751274993239,1.32892742,654.07,653.68,1.599]
[1751274993438,1.32892742,654.06,653.68,1.599]
[1751274993735,1.32892742,654.05,653.68,1.599]
[1751274993933,1.32892742,654.04,653.68,1.599]
[1751274994137,1.32892742,654.03,653.68,1.599]
[1751274994335,1.5288625,654.33,653.68,1.599]
[1751274994535,1.32867038,654.32,653.68,1.599]
[1751274994739,1.32867038,654.31,653.68,1.599]
[1751274994937,1.32867038,654.3,653.68,1.599]
[1751274995240,1.32867038,654.29,653.68,1.599]
[1751274995436,1.32867038,654.28,653.68,1.599]
[1751274995740,1.32867038,654.27,653.68,1.599]
[1751274995940,1.32867038,654.26,653.68,1.599]
[1751274996142,1.32867038,654.25,653.68,1.599]
[1751274996342,1.32867038,654.24,653.68,1.599]
[1751274996541,1.32867038,654.23,653.68,1.599]
[1751274996743,1.32867038,654.22,653.68,1.599]
[1751274996942,1.32867038,654.21,653.68,1.599]
[1751274997143,1.32867038,654.2,653.68,1.599]
[1751274997343,1.32867038,654.19,653.68,1.599]
[1751274997643,1.32867038,654.18,653.68,1.599]
[1751274997839,1.32867038,654.17,653.68,1.599]
[1751274998048,1.5288625,654.36,653.68,1.599]
[1751274998049,1.32867038,654.16,653.68,1.599]
[1751274998238,1.32867038,654.15,653.68,1.599]
[1751274998441,1.32867038,654.14,653.68,1.599]
[1751274998739,1.32867038,654.13,653.68,1.599]
[1751274998939,1.32867038,654.12,653.68,1.599]
[1751274999139,1.32867038,654.11,653.68,1.599]
[1751274999343,1.32867038,654.1,653.68,1.599]
[1751274999540,1.32867038,654.09,653.68,1.599]
[1751274999742,1.32867038,654.08,653.68,1.599]
[1751274999943,1.32867038,654.07,653.68,1.599]
[1751275000138,1.5288625,654.32,653.68,1.599]
[1751275000139,1.32867038,654.06,653.68,1.599]
[1751275000339,1.32867038,654.05,653.68,1.599]
[1751275000545,1.32867038,654.04,653.68,1.599]
[1751275000741,1.32867038,654.03,653.68,1.599]
[1751275000941,1.32867038,654.02,653.68,1.599]
[1751275001244,1.32867038,654.01,653.68,1.599]
[1751275001441,0.2660703,654.48,653.68,1.599]
[1751275001442,1.32867038,654.0,653.68,1.599]
[1751275001740,1.32867038,653.99,653.68,1.599]
[1751275001944,1.32867038,653.98,653.68,1.599]
[1751275002139,1.5288625,654.27,653.68,1.599]
[1751275002343,1.32818861,654.26,653.68,1.599]
[1751275002541,1.5288625,654.28,653.68,1.599]
[1751275002542,1.32818861,654.25,653.68,1.599]
[1751275002741,1.32818861,654.24,653.68,1.599]
[1751275003039,1.32818861,654.23,653.68,1.599]
[1751275003244,1.32818861,654.22,653.68,1.599]
[1751275003442,1.32818861,654.21,653.68,1.599]
[1751275003643,1.32818861,654.2,653.68,1.599]
[1751275003839,1.32818861,654.19,653.68,1.599]
[1751275004044,1.32818861,654.18,653.68,1.599]
[1751275004246,1.32818861,654.17,653.69,1.943]
[1751275004442,1.32818861,654.16,653.69,1.943]
[1751275004744,1.32818861,654.15,653.69,1.943]
[1751275004945,1.32818861,654.14,653.69,1.943]
[1751275005146,1.32818861,654.13,653.69,1.943]
[1751275005346,1.32818861,654.12,653.69,1.943]
[1751275005546,1.32818861,654.11,653.69,1.943]
[1751275005742,1.32818861,654.1,653.69,1.943]
[1751275005947,1.32818861,654.09,653.69,1.943]
[1751275006148,1.32818861,654.08,653.69,1.943]
[1751275006348,1.32818861,654.07,653.69,1.943]
[1751275006546,1.32818861,654.06,653.7,1.347]
[1751275006748,1.32818861,654.05,653.7,1.347]
[1751275006947,1.32818861,654.04,653.7,1.347]
[1751275007148,1.32818861,654.03,653.7,1.347]
[1751275007349,1.32818861,654.02,653.7,1.347]
[1751275007646,1.32818861,654.01,653.7,1.347]
[1751275007846,1.32818861,654.0,653.7,1.347]
[1751275008048,1.5288625,654.29,653.7,1.347]
[1751275008347,1.32806104,654.28,653.7,1.347]
[1751275008552,1.32806104,654.27,653.7,1.347]
[1751275008851,1.32806104,654.26,653.7,1.347]
[1751275009148,1.32806104,654.25,653.7,1.347]
[1751275009348,1.32806104,654.24,653.71,2.074]
[1751275009546,1.32806104,654.23,653.71,2.074]
[1751275009750,1.32806104,654.22,653.71,2.074]
[1751275009947,1.32806104,654.21,653.71,2.074]
[1751275010151,1.32806104,654.2,653.71,2.074]
[1751275010350,1.32806104,654.19,653.71,2.074]
[1751275010551,1.32806104,654.18,653.71,2.074]
[1751275010753,1.32806104,654.17,653.71,2.074]
[1751275011052,1.32806104,654.16,653.71,2.074]
[1751275011252,1.32806104,654.15,653.71,2.074]
[1751275011448,1.32806104,654.14,653.71,2.074]
[1751275011648,1.5288625,654.3,653.71,2.074]
[1751275011649,1.32806104,654.13,653.71,2.074]
[1751275011853,0.2660703,654.48,653.71,2.074]
[1751275011854,1.32806104,654.12,653.71,2.074]
[1751275012147,1.32806104,654.11,653.71,2.074]
[1751275012348,1.32806104,654.1,653.71,2.074]
[1751275012649,1.32806104,654.09,653.71,2.074]
[1751275012854,1.32806104,654.08,653.71,2.074]
[1751275013052,1.32806104,654.07,653.71,2.074]
[1751275013259,1.32806104,654.06,653.71,2.074]
[1751275013553,1.32806104,654.05,653.72,1.267]
[1751275013851,1.32806104,654.04,653.72,1.267]
[1751275014054,1.32806104,654.03,653.72,1.267]
[1751275014351,1.32806104,654.02,653.72,1.267]
[1751275014655,1.32806104,654.01,653.72,1.267]
[1751275014955,1.32806104,654.0,653.72,1.267]
[1751275015153,1.32806104,653.99,653.72,1.267]
[1751275015351,1.32806104,653.98,653.72,1.267]
[1751275015553,1.32806104,653.97,653.72,1.267]
[1751275015754,1.32806104,653.96,653.72,1.267]
[1751275015955,1.32806104,653.95,653.72,1.267]
[1751275016255,1.32806104,653.94,653.72,1.267]
[1751275016456,1.32806104,653.93,653.72,1.267]
[1751275016656,1.32806104,653.92,653.72,1.267]
[1751275016856,1.32806104,653.91,653.72,1.267]
[1751275017055,1.32806104,653.9,653.72,1.267]
[1751275017252,1.32806104,653.89,653.72,1.267]
[1751275017455,1.32806104,653.88,653.72,1.267]
[1751275017659,1.32806104,653.87,653.72,1.267]
[1751275017857,1.5288625,654.19,653.72,1.267]
[1751275018057,1.3282036,654.18,653.72,1.267]
[1751275018256,1.3282036,654.17,653.72,1.267]
[1751275018458,1.3282036,654.16,653.72,1.267]
[1751275018657,1.3282036,654.15,653.72,1.267]
[1751275018860,1.3282036,654.14,653.72,1.267]
[1751275019056,1.3282036,654.13,653.72,1.267]
[1751275019261,1.3282036,654.12,653.72,1.267]
[1751275019457,1.3282036,654.11,653.72,1.267]
[1751275019658,1.3282036,654.1,653.72,1.267]
[1751275019862,1.3282036,654.09,653.72,1.267]
[1751275020062,1.3282036,654.08,653.72,1.267]
[1751275020262,1.3282036,654.07,653.72,1.267]
[1751275020459,1.3282036,654.06,653.72,1.267]
[1751275020758,1.3282036,654.05,653.72,1.267]
[1751275020964,1.3282036,654.04,653.72,1.267]
[1751275021163,1.3282036,654.03,653.72,1.267]
[1751275021364,1.3282036,654.02,653.72,1.267]
[1751275021664,1.3282036,654.01,653.72,1.267]
[1751275021859,1.3282036,654.0,653.72,1.267]
[1751275022164,1.3282036,653.99,653.72,1.267]
[1751275022362,1.3282036,653.98,653.72,1.267]
[1751275022563,1.3282036,653.97,653.72,1.267]
[1751275022764,1.3282036,653.96,653.72,1.267]
[1751275022964,1.3282036,653.95,653.72,1.267]
[1751275023263,1.3282036,653.94,653.72,1.267]
[1751275023459,1.3282036,653.93,653.72,1.267]
[1751275023759,1.3282036,653.92,653.72,1.267]
[1751275023965,1.3282036,653.91,653.72,1.267]
[1751275024169,1.3282036,653.9,653.72,1.267]
[1751275024365,1.3282036,653.89,653.72,1.267]
[1751275024562,1.3282036,653.88,653.72,1.267]
[1751275024862,1.3282036,653.87,653.72,1.267]
[1751275025166,1.32786675,653.86,653.72,1.267]
[1751275025364,1.32786675,653.85,653.72,1.267]
[1751275025565,1.32786675,653.84,653.72,1.267]
[1751275025764,1.32786675,653.83,653.72,1.267]
[1751275025966,1.32786675,653.82,653.72,1.267]
[1751275026268,1.5288625,654.13,653.72,1.267]
[1751275026464,1.32764653,654.12,653.72,1.267]
[1751275026766,1.32764653,654.11,653.72,1.267]
[1751275026963,1.32764653,654.1,653.72,1.267]
[1751275027166,1.32764653,654.09,653.72,1.267]
[1751275027363,1.32764653,654.08,653.72,1.267]
[1751275027668,1.32764653,654.07,653.72,1.267]